fUSD/lending_fUSD_20250301
["ID","MTS","AMOUNT","RATE_DAILY","PERIOD"]
[354986209,1740856272000,-1017.6093248,0.0002631,2]
[354986210,1740856272010,-4891.2727656,0.0002631,2]
[354986211,1740856272019,-405.558736,0.00026382,2]
[354986212,1740856272029,-278.7195474,0.00026382,2]
[354986213,1740856272038,-707.86147,0.000264,2]
[354986214,1740856272047,-294.83491814,0.00026408,2]
[354986215,1740856272057,-322.67820828,0.00026475,2]
[354986216,1740856272066,-153.78,0.0002652,2]
[354986217,1740856272076,-644.77,0.0002657,2]
[354986218,1740856272085,-644.77,0.00026574,2]
[354986219,1740856272095,-100000.0,0.00026575,5]
[354986220,1740856272104,-500.0,0.00026575,2]
[354986221,1740856272113,-500.0,0.00026575,2]
[354986222,1740856272123,-500.0,0.00026575,2]
[354986223,1740856272132,-500.0,0.00026575,2]
[354986224,1740856272141,-500.0,0.00026575,2]
[354986225,1740856272151,-500.0,0.00026575,2]
[354986226,1740856272160,-500.0,0.00026575,2]
[354986227,1740856272170,-500.0,0.00026575,2]
[354986228,1740856272179,-500.0,0.00026575,2]
[354986229,1740856272189,-500.0,0.00026575,2]
[354986230,1740856272198,-500.0,0.00026575,2]
[354986231,1740856272208,-595.1,0.00026575,2]
[354986232,1740856272217,-500.0,0.00026575,2]
[354986233,1740856272226,-500.0,0.00026575,2]
[354986234,1740856272235,-500.0,0.00026575,2]
[354986235,1740856272245,-688.77,0.00026575,2]
[354986236,1740856272254,-500.0,0.00026575,2]
[354986237,1740856272264,-500.0,0.00026575,2]
[354986238,1740856272273,-500.0,0.00026575,2]
[354986239,1740856272282,-500.0,0.00026575,2]
[354986240,1740856272291,-509.36,0.00026575,2]
[354986241,1740856272300,-623.3,0.00026575,2]
[354986242,1740856272310,-500.0,0.00026575,2]
[354986243,1740856272319,-631.28,0.00026575,2]
[354986244,1740856272329,-500.0,0.00026575,2]
[354986245,1740856272338,-500.0,0.00026575,2]
[354986246,1740856272348,-500.0,0.00026575,2]
[354986247,1740856272357,-500.0,0.00026575,2]
[354986248,1740856272366,-632.43,0.00026575,2]
[354986249,1740856272375,-663.0,0.00026575,2]
[354986250,1740856272385,-1421.164967,0.00026575,2]
[354986251,1740856272394,-532.83,0.00026575,2]
[354986252,1740856272403,-500.0,0.00026575,2]
[354986253,1740856272412,-661.03,0.00026575,2]
[354986254,1740856272422,-351.47736008,0.00026575,2]
[354986255,1740856272434,-707.13,0.00026575,2]
[354986256,1740856272444,-1027.29,0.00026575,2]
[354986257,1740856272453,-500.0,0.00026575,2]
[354986258,1740856272463,-500.0,0.00026575,2]
[354986259,1740856272473,-500.0,0.00026575,2]
[354986260,1740856272482,-500.0,0.00026575,2]
[354986261,1740856272491,-214.9212572,0.00026575,2]
[354986262,1740856272501,-1254.33,0.00026575,2]
[354986263,1740856272511,-500.0,0.00026575,2]
[354986264,1740856272521,-500.0,0.00026575,2]
[354986265,1740856272531,-514.84,0.00026575,2]
[354986266,1740856272540,-500.0,0.00026575,2]
[354986267,1740856272550,-500.0,0.00026575,2]
[354986268,1740856272559,-609.78467675,0.00026575,2]
[354986269,1740856272569,-512.94,0.00026575,2]
[354986270,1740856272579,-500.0,0.00026575,2]
[354986271,1740856272589,-523.3,0.00026575,2]
[354986272,1740856272598,-1096.097519,0.00026575,2]
[354986273,1740856272609,-500.0,0.00026575,2]
[354986274,1740856272618,-571.6,0.00026575,2]
[354986275,1740856272627,-500.0,0.00026575,2]
[354986276,1740856272637,-500.0,0.00026575,2]
[354986277,1740856272646,-500.0,0.00026575,2]
[354986278,1740856272656,-704.75,0.00026575,2]
[354986279,1740856272667,-924.57,0.00026575,2]
[354986280,1740856272677,-820.53,0.00026575,2]
[354986281,1740856272686,-503.08,0.00026575,2]
[354986282,1740856272876,-550.72,0.00026575,2]
[354986283,1740856272886,-500.0,0.00026575,2]
[354986284,1740856272896,-500.0,0.00026575,2]
[354986285,1740856272906,-548.07,0.00026575,2]
[354986286,1740856272917,-500.0,0.00026575,2]
[354986287,1740856272927,-779.96,0.00026575,2]
[354986288,1740856272938,-500.0,0.00026575,2]
[354986289,1740856272948,-500.0,0.00026575,2]
[354986290,1740856272959,-500.0,0.00026575,2]
[354986291,1740856272969,-500.0,0.00026575,2]
[354986292,1740856272979,-323.83643334,0.00026575,2]
[354986293,1740856272989,-504.27,0.00026575,2]
[354986294,1740856272998,-583.8,0.00026575,2]
[354986295,1740856273008,-500.0,0.00026575,2]
[354986296,1740856273017,-1171.62,0.00026575,2]
[354986297,1740856273027,-724.92,0.00026575,2]
[354986298,1740856273036,-500.0,0.00026575,2]
[354986299,1740856273046,-783.05,0.00026575,2]
[354986300,1740856273056,-500.0,0.00026575,2]
[354986301,1740856273065,-500.0,0.00026575,2]
[354986302,1740856273075,-500.0,0.00026575,2]
[354986303,1740856273084,-500.0,0.00026575,2]
[354986304,1740856273093,-500.0,0.00026575,2]
[354986305,1740856273103,-837.89,0.00026575,2]
[354986306,1740856273113,-500.0,0.00026575,2]
[354986307,1740856273122,-500.0,0.00026575,2]
[354986308,1740856273132,-523.38,0.00026575,2]
[354986309,1740856273141,-500.0,0.00026575,2]
[354986310,1740856273150,-926.76,0.00026575,2]
[354986311,1740856273159,-581.63,0.00026575,2]
[354986312,1740856273170,-512.3,0.00026575,2]
[354986313,1740856273179,-654.97,0.00026575,2]
[354986314,1740856273189,-2696.96,0.00026575,2]
[354986315,1740856273199,-601.97,0.00026575,2]
[354986316,1740856273209,-500.0,0.00026575,2]
[354986317,1740856273218,-237.07730737,0.00026575,2]
[354986318,1740856273227,-630.48,0.00026575,2]
[354986319,1740856273236,-500.0,0.00026575,2]
[354986320,1740856273246,-500.0,0.00026575,2]
[354986321,1740856273255,-500.0,0.00026575,2]
[354986322,1740856273265,-500.0,0.00026575,2]
[354986323,1740856273274,-500.0,0.00026575,2]
[354986324,1740856273284,-528.28,0.00026575,2]
[354986325,1740856273294,-500.0,0.00026575,2]
[354986326,1740856273304,-698.95,0.00026575,2]
[354986327,1740856273314,-221.35380247,0.00026575,2]
[354986328,1740856273323,-500.0,0.00026575,2]
[354986329,1740856273334,-500.0,0.00026575,2]
[354986330,1740856273344,-500.0,0.00026575,2]
[354986331,1740856273354,-500.0,0.00026575,2]
[354986332,1740856273364,-626.18,0.00026575,2]
[354986333,1740856273374,-511.29561097,0.00026575,2]
[354986334,1740856273384,-500.0,0.00026575,2]
[354986335,1740856273393,-500.0,0.00026575,2]
[354986336,1740856273403,-745.24,0.00026575,2]
[354986337,1740856273414,-500.0,0.00026575,2]
[354986338,1740856273424,-500.0,0.00026575,2]
[354986339,1740856273436,-500.0,0.00026575,2]
[354986340,1740856273447,-500.0,0.00026575,2]
[354986341,1740856273457,-588.75,0.00026575,2]
[354986342,1740856273468,-500.0,0.00026575,2]
[354986343,1740856273480,-504.35,0.00026575,2]
[354986344,1740856273489,-500.0,0.00026575,2]
[354986345,1740856273498,-500.0,0.00026575,2]
[354986346,1740856273508,-500.0,0.00026575,2]
[354986347,1740856273522,-500.0,0.00026575,2]
[354986348,1740856273532,-500.0,0.00026575,2]
[354986349,1740856273542,-976.77,0.00026575,2]
[354986350,1740856273552,-500.0,0.00026575,2]
[354986351,1740856273561,-574.0,0.00026575,2]
[354986352,1740856273570,-1503.56,0.00026575,2]
[354986353,1740856273580,-500.0,0.00026575,2]
[354986354,1740856273589,-791.94,0.00026575,2]
[354986355,1740856273599,-613.14,0.00026575,2]
[354986356,1740856273608,-500.0,0.00026575,2]
[354986357,1740856273618,-655.11,0.00026575,2]
[354986358,1740856273627,-500.0,0.00026575,2]
[354986359,1740856273636,-500.0,0.00026575,2]
[354986360,1740856273647,-500.0,0.00026575,2]
[354986361,1740856273656,-500.0,0.00026575,2]
[354986362,1740856273666,-500.0,0.00026575,2]
[354986363,1740856273675,-669.13,0.00026575,2]
[354986364,1740856273685,-500.0,0.00026575,2]
[354986365,1740856273694,-770.03,0.00026575,2]
[354986366,1740856273704,-500.0,0.00026575,2]
[354986367,1740856273713,-613.68,0.00026575,2]
[354986368,1740856273723,-500.0,0.00026575,2]
[354986369,1740856273732,-899.43,0.00026575,2]
[354986370,1740856273741,-500.0,0.00026575,2]
[354986371,1740856273750,-559.35,0.00026575,2]
[354986372,1740856273760,-865.2,0.00026575,2]
[354986373,1740856273769,-870.71,0.00026575,2]
[354986374,1740856273779,-500.0,0.00026575,2]
[354986375,1740856273788,-543.67,0.00026575,2]
[354986376,1740856273798,-1050.09,0.00026575,2]
[354986377,1740856273807,-500.0,0.00026575,2]
[354986378,1740856273817,-500.0,0.00026575,2]
[354986379,1740856273827,-640.07,0.00026575,2]
[354986380,1740856273837,-500.0,0.00026575,2]
[354986381,1740856273847,-264.37031769,0.00026575,2]
[354986382,1740856273857,-500.0,0.00026575,2]
[354986383,1740856273867,-634.84,0.00026575,2]
[354986384,1740856273877,-556.8,0.00026575,2]
[354986385,1740856273887,-515.04,0.00026575,2]
[354986386,1740856273896,-500.0,0.00026575,2]
[354986387,1740856273906,-3254.27,0.00026575,2]
[354986388,1740856273917,-500.0,0.00026575,2]
[354986389,1740856273926,-500.0,0.00026575,2]
[354986390,1740856273935,-500.0,0.00026575,2]
[354986391,1740856273944,-500.0,0.00026575,2]
[354986392,1740856273954,-500.0,0.00026575,2]
[354986393,1740856273965,-509.27,0.00026575,2]
[354986394,1740856273975,-500.0,0.00026575,2]
[354986395,1740856273985,-500.0,0.00026575,2]
[354986396,1740856273995,-500.0,0.00026575,2]
[354986397,1740856274004,-633.96,0.00026575,2]
[354986398,1740856274014,-784.34,0.00026575,2]
[354986399,1740856274023,-7253.78,0.00026575,2]
[354986400,1740856274033,-949.8,0.00026575,2]
[354986401,1740856274043,-500.0,0.00026575,2]
[354986402,1740856274053,-1342.91,0.00026575,2]
[354986403,1740856274063,-641.56,0.00026575,2]
[354986404,1740856274073,-750.48,0.00026575,2]
[354986405,1740856274083,-500.0,0.00026575,2]
[354986406,1740856274093,-1234.68,0.00026575,2]
[354986407,1740856274103,-511.71,0.00026575,2]
[354986408,1740856274114,-604.81,0.00026575,2]
[354986409,1740856274125,-593.14,0.00026575,2]
[354986410,1740856274135,-1270.91,0.00026575,2]
[354986411,1740856274145,-500.0,0.00026575,2]
[354986412,1740856274157,-500.0,0.00026575,2]
[354986413,1740856274169,-2237.39,0.00026575,2]
[354986414,1740856274181,-586.47,0.00026575,2]
[354986415,1740856274191,-547.79,0.00026575,2]
[354986416,1740856274201,-970.44,0.00026575,2]
[354986417,1740856274211,-500.0,0.00026575,2]
[354986418,1740856274222,-500.0,0.00026575,2]
[354986419,1740856274232,-976.15,0.00026575,2]
[354986420,1740856274244,-500.0,0.00026575,2]
[354986421,1740856274257,-500.0,0.00026575,2]
[354986422,1740856274269,-1242.5,0.00026575,2]
[354986423,1740856274280,-500.0,0.00026575,2]
[354986424,1740856274290,-1437.04,0.00026575,2]
[354986425,1740856274302,-812.04,0.00026575,2]
[354986426,1740856274314,-869.82,0.00026575,2]
[354986427,1740856274325,-806.75,0.00026575,2]
[354986428,1740856274336,-2822.69,0.00026575,2]
[354986429,1740856274346,-873.08,0.00026575,2]
[354986430,1740856274357,-1414.88,0.00026575,2]
[354986431,1740856274369,-500.0,0.00026575,2]
[354986432,1740856274380,-730.6,0.00026575,2]
[354986433,1740856274391,-500.0,0.00026575,2]
[354986434,1740856274402,-500.0,0.00026575,2]
[354986435,1740856274413,-500.0,0.00026575,2]
[354986436,1740856274424,-1890.73,0.00026575,2]
[354986437,1740856274437,-889.77,0.00026575,2]
[354986438,1740856274448,-907.91,0.00026575,2]
[354986439,1740856274459,-1114.97,0.00026575,2]
[354986440,1740856274470,-15462.04,0.00026575,2]
[354986441,1740856274482,-500.0,0.00026575,2]
[354986442,1740856274494,-1466.07,0.00026575,2]
[354986443,1740856274505,-500.0,0.00026575,2]
[354986444,1740856274517,-939.73,0.00026575,2]
[354986445,1740856274528,-500.0,0.00026575,2]
[354986446,1740856274538,-1121.02,0.00026575,2]
[354986447,1740856274548,-1074.69,0.00026575,2]
[354986448,1740856274559,-639.35,0.00026575,2]
[354986449,1740856274569,-504.15,0.00026575,2]
[354986450,1740856274579,-500.0,0.00026575,2]
[354986451,1740856274589,-687.8,0.00026575,2]
[354986452,1740856274599,-500.0,0.00026575,2]
[354986453,1740856274609,-500.0,0.00026575,2]
[354986454,1740856274619,-954.8,0.00026575,2]
[354986455,1740856274629,-500.0,0.00026575,2]
[354986456,1740856274639,-500.0,0.00026575,2]
[354986457,1740856274648,-594.86,0.00026575,2]
[354986458,1740856274659,-708.75,0.00026575,2]
[354986459,1740856274670,-909.23,0.00026575,2]
[354986460,1740856274680,-1993.28,0.00026575,2]
[354986461,1740856274690,-519.54,0.00026575,2]
[354986462,1740856274700,-500.0,0.00026575,2]
[354986463,1740856274710,-838.22,0.00026575,2]
[354986464,1740856274721,-500.0,0.00026575,120]
[354986465,1740856274731,-500.0,0.00026575,2]
[354986466,1740856274740,-537.25,0.00026575,2]
[354986467,1740856274751,-755.75,0.00026575,2]
[354986468,1740856274761,-692.09,0.00026575,2]
[354986469,1740856274771,-937.03,0.00026575,2]
[354986470,1740856274781,-2605.69,0.00026575,2]
[354986471,1740856274792,-500.0,0.00026575,2]
[354986472,1740856274802,-564.77,0.00026575,2]
[354986473,1740856274813,-1184.01,0.00026575,2]
[354986474,1740856274823,-551.31,0.00026575,2]
[354986475,1740856274833,-819.54,0.00026575,2]
[354986476,1740856274844,-520.8,0.00026575,2]
[354986477,1740856274854,-12176.22,0.00026575,2]
[354986478,1740856274864,-2100.69,0.00026575,2]
[354986479,1740856274874,-500.0,0.00026575,2]
[354986480,1740856274883,-500.0,0.00026575,2]
[354986481,1740856274893,-817.55,0.00026575,2]
[354986482,1740856274903,-500.0,0.00026575,2]
[354986483,1740856274913,-985.63,0.00026575,2]
[354986484,1740856274923,-500.0,0.00026575,2]
[354986485,1740856274933,-1030.34,0.00026575,2]
[354986486,1740856274943,-500.0,0.00026575,2]
[354986487,1740856274953,-500.0,0.00026575,2]
[354986488,1740856274963,-2166.07,0.00026575,2]
[354986489,1740856274974,-500.0,0.00026575,2]
[354986490,1740856274984,-906.42,0.00026575,2]
[354986491,1740856274994,-500.0,0.00026575,2]
[354986492,1740856275005,-500.0,0.00026575,2]
[354986493,1740856275015,-809.95,0.00026575,2]
[354986494,1740856275025,-982.03,0.00026575,2]
[354986495,1740856275036,-500.0,0.00026575,2]
[354986496,1740856275046,-500.0,0.00026575,2]
[354986497,1740856275057,-1295.8,0.00026575,2]
[354986498,1740856275067,-3221.36,0.00026575,2]
[354986499,1740856275077,-529.08,0.00026575,2]
[354986500,1740856275087,-985.14,0.00026575,2]
[354986501,1740856275096,-500.0,0.00026575,2]
[354986502,1740856275107,-752.49,0.00026575,2]
[354986503,1740856275117,-822.0,0.00026575,2]
[354986504,1740856275128,-933.97,0.00026575,2]
[354986505,1740856275138,-522.68,0.00026575,2]
[354986506,1740856275149,-708.76,0.00026575,2]
[354986507,1740856275159,-500.0,0.00026575,2]
[354986508,1740856275170,-500.0,0.00026575,2]
[354986509,1740856275181,-1029.3,0.00026575,2]
[354986510,1740856275192,-518.36,0.00026575,2]
[354986511,1740856275202,-500.0,0.00026575,2]
[354986512,1740856275213,-10408.95,0.00026575,2]
[354986513,1740856275223,-691.85,0.00026575,2]
[354986514,1740856275234,-667.94,0.00026575,2]
[354986515,1740856275245,-500.0,0.00026575,2]
[354986516,1740856275256,-500.0,0.00026575,2]
[354986517,1740856275267,-1204.62,0.00026575,2]
[354986518,1740856275279,-500.0,0.00026575,2]
[354986519,1740856275289,-500.0,0.00026575,2]
[354986520,1740856275299,-1522.19,0.00026575,2]
[354986521,1740856275310,-500.0,0.00026575,2]
[354986522,1740856275319,-500.0,0.00026575,2]
[354986523,1740856275328,-500.0,0.00026575,2]
[354986524,1740856275339,-500.0,0.00026575,2]
[354986525,1740856275350,-500.0,0.00026575,2]
[354986526,1740856275360,-500.0,0.00026575,2]
[354986527,1740856275370,-500.0,0.00026575,2]
[354986528,1740856275380,-645.19,0.00026575,2]
[354986529,1740856275391,-500.0,0.00026575,2]
[354986530,1740856275401,-500.0,0.00026575,2]
[354986531,1740856275411,-500.0,0.00026575,2]
[354986532,1740856275421,-651.2,0.00026575,2]
[354986533,1740856275435,-1449.79,0.00026575,2]
[354986534,1740856275445,-500.0,0.00026575,2]
[354986535,1740856275455,-2292.81,0.00026575,2]
[354986536,1740856275465,-948.25,0.00026575,2]
[354986537,1740856275476,-512.79028089,0.00026575,2]
[354986538,1740856275485,-1664.15,0.00026575,2]
[354986539,1740856275495,-500.0,0.00026575,2]
[354986540,1740856275505,-500.0,0.00026575,2]
[354986541,1740856275517,-500.0,0.00026575,2]
[354986542,1740856275527,-902.78,0.00026575,2]
[354986543,1740856275537,-563.76,0.00026575,2]
[354986544,1740856275547,-646.84,0.00026575,2]
[354986545,1740856275557,-500.0,0.00026575,2]
[354986546,1740856275567,-618.01,0.00026575,2]
[354986547,1740856275576,-5190.55,0.00026575,2]
[354986548,1740856275586,-960.13,0.00026575,2]
[354986549,1740856275596,-500.0,0.00026575,2]
[354986550,1740856275607,-1609.53,0.00026575,2]
[354986551,1740856275617,-755.39,0.00026575,2]
[354986552,1740856275627,-500.0,0.00026575,2]
[354986553,1740856275637,-500.0,0.00026575,2]
[354986554,1740856275646,-651.25,0.00026575,2]
[354986555,1740856275655,-773.56,0.00026575,2]
[354986556,1740856275665,-307.51775255,0.00026624,4]
[354986557,1740856275675,-9279.36474713,0.00026749,2]
[354986558,1740856275685,-294.83491814,0.00026803,2]
[354986559,1740856275694,-644.77,0.00026848,2]
[354986560,1740856275704,-100000.0,0.00026849,6]
[354986561,1740856275714,-500.0,0.00026849,2]
[354986562,1740856275723,-500.0,0.00026849,2]
[354986563,1740856275732,-500.0,0.00026849,2]
[354986564,1740856275741,-500.0,0.00026849,2]
[354986565,1740856275751,-500.0,0.00026849,2]
[354986566,1740856275761,-500.0,0.00026849,2]
[354986567,1740856275770,-500.0,0.00026849,2]
[354986568,1740856275780,-500.0,0.00026849,2]
[354986569,1740856275790,-500.0,0.00026849,2]
[354986570,1740856275799,-500.0,0.00026849,2]
[354986571,1740856275809,-500.0,0.00026849,2]
[354986572,1740856275819,-595.1,0.00026849,2]
[354986573,1740856275829,-500.0,0.00026849,2]
[354986574,1740856275838,-500.0,0.00026849,2]
[354986575,1740856275849,-500.0,0.00026849,2]
[354986576,1740856275859,-688.77,0.00026849,2]
[354986577,1740856275869,-500.0,0.00026849,2]
[354986578,1740856275878,-500.0,0.00026849,2]
[354986579,1740856275888,-500.0,0.00026849,2]
[354986580,1740856275898,-500.0,0.00026849,2]
[354986581,1740856275908,-509.36,0.00026849,2]
[354986582,1740856275918,-623.3,0.00026849,2]
[354986583,1740856276088,-500.0,0.00026849,2]
[354986584,1740856276098,-631.28,0.00026849,2]
[354986585,1740856276108,-500.0,0.00026849,2]
[354986586,1740856276118,-500.0,0.00026849,2]
[354986587,1740856276127,-500.0,0.00026849,2]
[354986588,1740856276137,-500.0,0.00026849,2]
[354986589,1740856276147,-632.43,0.00026849,2]
[354986590,1740856276156,-663.0,0.00026849,2]
[354986591,1740856276166,-1421.164967,0.00026849,2]
[354986592,1740856276176,-532.83,0.00026849,2]
[354986593,1740856276186,-500.0,0.00026849,2]
[354986594,1740856276195,-661.03,0.00026849,2]
[354986595,1740856276205,-707.13,0.00026849,2]
[354986597,1740856276215,-1027.29,0.00026849,2]
[354986598,1740856276225,-500.0,0.00026849,2]
[354986599,1740856276234,-500.0,0.00026849,2]
[354986600,1740856276244,-500.0,0.00026849,2]
[354986601,1740856276254,-500.0,0.00026849,2]
[354986602,1740856276264,-1254.33,0.00026849,2]
[354986603,1740856276275,-500.0,0.00026849,2]
[354986604,1740856276284,-500.0,0.00026849,2]
[354986605,1740856276294,-514.84,0.00026849,2]
[354986606,1740856276303,-500.0,0.00026849,2]
[354986607,1740856276313,-500.0,0.00026849,2]
[354986608,1740856276323,-512.94,0.00026849,2]
[354986609,1740856276333,-500.0,0.00026849,2]
[354986610,1740856276343,-523.3,0.00026849,2]
[354986611,1740856276352,-1096.097519,0.00026849,2]
[354986612,1740856276362,-500.0,0.00026849,2]
[354986613,1740856276371,-571.6,0.00026849,2]
[354986614,1740856276380,-500.0,0.00026849,2]
[354986615,1740856276391,-500.0,0.00026849,2]
[354986616,1740856276400,-500.0,0.00026849,2]
[354986617,1740856276410,-704.75,0.00026849,2]
[354986618,1740856276420,-924.57,0.00026849,2]
[354986619,1740856276432,-820.53,0.00026849,2]
[354986620,1740856276443,-503.08,0.00026849,2]
[354986621,1740856276453,-550.72,0.00026849,2]
[354986622,1740856276463,-500.0,0.00026849,2]
[354986623,1740856276474,-500.0,0.00026849,2]
[354986624,1740856276484,-548.07,0.00026849,2]
[354986625,1740856276494,-500.0,0.00026849,2]
[354986626,1740856276504,-779.96,0.00026849,2]
[354986627,1740856276514,-500.0,0.00026849,2]
[354986628,1740856276524,-500.0,0.00026849,2]
[354986629,1740856276534,-500.0,0.00026849,2]
[354986630,1740856276544,-500.0,0.00026849,2]
[354986631,1740856276554,-504.27,0.00026849,2]
[354986632,1740856276564,-583.8,0.00026849,2]
[354986633,1740856276574,-500.0,0.00026849,2]
[354986634,1740856276583,-1171.62,0.00026849,2]
[354986635,1740856276593,-724.92,0.00026849,2]
[354986636,1740856276603,-500.0,0.00026849,2]
[354986637,1740856276614,-783.05,0.00026849,2]
[354986638,1740856276623,-500.0,0.00026849,2]
[354986639,1740856276633,-500.0,0.00026849,2]
[354986640,1740856276643,-500.0,0.00026849,2]
[354986641,1740856276652,-500.0,0.00026849,2]
[354986642,1740856276662,-500.0,0.00026849,2]
[354986643,1740856276672,-837.89,0.00026849,2]
[354986644,1740856276683,-500.0,0.00026849,2]
[354986645,1740856276692,-500.0,0.00026849,2]
[354986646,1740856276702,-523.38,0.00026849,2]
[354986647,1740856276711,-500.0,0.00026849,2]
[354986648,1740856276721,-926.76,0.00026849,2]
[354986649,1740856276731,-581.63,0.00026849,2]
[354986650,1740856276741,-512.3,0.00026849,2]
[354986651,1740856276751,-654.97,0.00026849,2]
[354986652,1740856276760,-2696.96,0.00026849,2]
[354986653,1740856276770,-601.97,0.00026849,2]
[354986654,1740856276779,-500.0,0.00026849,2]
[354986655,1740856276789,-630.48,0.00026849,2]
[354986656,1740856276799,-500.0,0.00026849,2]
[354986657,1740856276808,-500.0,0.00026849,2]
[354986658,1740856276817,-500.0,0.00026849,2]
[354986659,1740856276827,-500.0,0.00026849,2]
[354986660,1740856276836,-500.0,0.00026849,2]
[354986661,1740856276846,-528.28,0.00026849,2]
[354986662,1740856276856,-500.0,0.00026849,2]
[354986663,1740856276865,-698.95,0.00026849,2]
[354986664,1740856276874,-500.0,0.00026849,2]
[354986665,1740856276885,-500.0,0.00026849,2]
[354986666,1740856276895,-500.0,0.00026849,2]
[354986667,1740856276904,-500.0,0.00026849,2]
[354986668,1740856276914,-626.18,0.00026849,2]
[354986669,1740856276923,-500.0,0.00026849,2]
[354986670,1740856276933,-500.0,0.00026849,2]
[354986671,1740856276942,-745.24,0.00026849,2]
[354986672,1740856276952,-500.0,0.00026849,2]
[354986673,1740856276962,-500.0,0.00026849,2]
[354986674,1740856276971,-500.0,0.00026849,2]
[354986675,1740856276980,-500.0,0.00026849,2]
[354986676,1740856276990,-588.75,0.00026849,2]
[354986677,1740856276999,-500.0,0.00026849,2]
[354986678,1740856277009,-504.35,0.00026849,2]
[354986679,1740856277023,-500.0,0.00026849,2]
[354986680,1740856277033,-500.0,0.00026849,2]
[354986681,1740856277043,-500.0,0.00026849,2]
[354986682,1740856277052,-500.0,0.00026849,2]
[354986683,1740856277062,-500.0,0.00026849,2]
[354986684,1740856277071,-976.77,0.00026849,2]
[354986685,1740856277081,-500.0,0.00026849,2]
[354986686,1740856277091,-574.0,0.00026849,2]
[354986687,1740856277100,-1503.56,0.00026849,2]
[354986688,1740856277109,-500.0,0.00026849,2]
[354986689,1740856277119,-791.94,0.00026849,2]
[354986690,1740856277129,-613.14,0.00026849,2]
[354986691,1740856277142,-500.0,0.00026849,2]
[354986692,1740856277152,-655.11,0.00026849,2]
[354986693,1740856277161,-500.0,0.00026849,2]
[354986694,1740856277172,-500.0,0.00026849,2]
[354986695,1740856277182,-500.0,0.00026849,2]
[354986696,1740856277192,-500.0,0.00026849,2]
[354986697,1740856277201,-500.0,0.00026849,2]
[354986698,1740856277211,-669.13,0.00026849,2]
[354986699,1740856277220,-500.0,0.00026849,2]
[354986700,1740856277230,-770.03,0.00026849,2]
[354986701,1740856277240,-500.0,0.00026849,2]
[354986702,1740856277250,-613.68,0.00026849,2]
[354986703,1740856277259,-500.0,0.00026849,2]
[354986704,1740856277268,-899.43,0.00026849,2]
[354986705,1740856277278,-500.0,0.00026849,2]
[354986706,1740856277287,-559.35,0.00026849,2]
[354986707,1740856277297,-865.2,0.00026849,2]
[354986708,1740856277307,-870.71,0.00026849,2]
[354986709,1740856277316,-500.0,0.00026849,2]